[Event "CZE-ch Open 2019"]
[Site "Ostrava"]
[Date "2019.05.04"]
[Round "8.24"]
[White "Taus, Martin"]
[Black "Vybiral, Zdenek"]
[Result "1-0"]
[ECO "B22"]
[WhiteElo "2104"]
[BlackElo "2269"]
[Annotator "NA RC"]
[PlyCount "96"]
[EventDate "2019.04.27"]
[EventType "swiss"]
[EventCountry "CZE"]
[SourceTitle "playchess.com"]
[Source "ChessBase"]
[SourceQuality "1"]
[TimeControl "40/5400+30:1800+30"]

1. e4 {[%emt 0:00:00]} c5 {[%emt 0:00:00]} 2. c3 {[%emt 0:00:00]} e6 {[%emt 0:00:00]} 3. d4 {[%emt 0:00:03]} d5 {[%emt 0:00:04]} 4. exd5 {[%emt 0:00:43]} exd5 {[%emt 0:00:06]} 5. Nf3 {[%emt 0:01:25]} Nc6 {[%emt 0:00:06]} 6. Bb5 {[%emt 0:04:05]} Bd6 {[%emt 0:15:13]} 7. O-O {[%emt 0:03:48]} Nge7 {[%emt 0:03:19]} 8. dxc5 {[%emt 0:03:02]} Bxc5 {[%emt 0:00:06]} 9. Nbd2 {[%emt 0:00:22]} O-O {[%emt 0:00:06]} 10. Nb3 {[%emt 0:01:22]} Bd6 {[%emt 0:00:38]} 11. Bg5 {[%emt 0:06:12]} f6 {[%emt 0:01:40]} 12. Bh4 {[%emt 0:06:10] C09: French Tarrasch: 3...c5 4 exd5 exd5 5 Ngf3 Nc6} Be6 {[%emt 0:00:07]} 13. Bg3 {[%emt 0:04:00]} Ne5 $146 {[%emt 0:13:49]} ({Predecessor:} 13... Bxg3 14. hxg3 Qb6 15. Be2 Rad8 16. Nfd4 Bf7 17. Re1 Ne5 18. a4 a5 19. Nb5 N7c6 {1-0 (57) Pridorozhni,A (2553)-Adamek,J (2244) Pardubice 2010}) 14. Re1 {[%emt 0:17:45]} N7g6 {[%emt 0:10:36]} 15. Nfd4 {[%emt 0:04:05]} Bf7 {[%emt 0:00:16]} 16. Nf5 {[%emt 0:01:54]} Bb8 {[%emt 0:01:31]} 17. Nbd4 {[%emt 0:05:42]} a6 {[%emt 0:02:11]} 18. Bf1 {[%emt 0:04:48]} Ba7 {[%emt 0:00:18]} 19. h4 {[%emt 0:02:11]} Re8 {[%emt 0:15:21]} 20. h5 {[%emt 0:19:11]} Ne7 {[%emt 0:00:15]} 21. Nxe7+ {[%emt 0:07:44]} Rxe7 {[%emt 0:00:26]} 22. Nf5 {[%emt 0:00:16]} Re8 {[%emt 0:00:10]} 23. Rxe5 {[%emt 0:02:15]} Rxe5 {[%emt 0:04:28]} 24. Qg4 {[%emt 0:00:41]} Rxf5 {[%emt 0:06:45]} 25. Qxf5 {[%emt 0:00:05]} Qc8 {[%emt 0:00:06]} 26. Qf3 {[%emt 0:00:42]} Qe6 {[%emt 0:00:36]} 27. Bd3 {[%emt 0:00:59]} Re8 {[%emt 0:01:02]} 28. Kf1 {[%emt 0:01:05]} Bc5 {[%emt 0:06:56]} 29. Bc2 {[%emt 0:00:49]} Qb6 {[%emt 0:04:23]} 30. Bb3 {[%emt 0:00:43]} Qb5+ {[%emt 0:01:48]} 31. Kg1 {[%emt 0:00:05]} a5 {[%emt 0:11:01]} 32. Rd1 {[%emt 0:00:50]} Rd8 {[%emt 0:00:42]} 33. c4 {[%emt 0:01:04]} Qb4 {[%emt 0:00:05]} 34. cxd5 {[%emt 0:00:50]} a4 {[%emt 0:00:18]} 35. Bc2 {[%emt 0:00:32]} Qxb2 {[%emt 0:00:05]} 36. Qe4 {[%emt 0:00:57]} g6 {[%emt 0:00:25]} 37. hxg6 {[%emt 0:00:55]} hxg6 {[%emt 0:00:24]} 38. d6 {[%emt 0:00:53]} Rd7 {[%emt 0:02:37]} 39. Bxa4 {[%emt 0:00:29]} b5 {[%emt 0:00:05]} 40. Rb1 {[%emt 0:00:30]} Qa3 {[%emt 0:00:39]} 41. Bxb5 {[%emt 0:04:21]} Qxg3 {[%emt 0:01:54]} 42. Bxd7 {[%emt 0:01:01]} Qxf2+ {[%emt 0:00:56]} 43. Kh1 {[%emt 0:01:15]} Qxa2 {[%emt 0:20:00]} 44. Rd1 {[%emt 0:10:59]} f5 {[%emt 0:00:24]} 45. Qd3 {[%emt 0:02:54]} Bb3 $2 {[%emt 0:07:37]} (45... Qf2) 46. Bc6 {[%emt 0:01:55]} Kg7 {[%emt 0:02:26] [#]} 47. d7 $1 {[%emt 0:05:48]} Bb6 {[%emt 0:00:29]} 48. Rb1 {[%emt 0:00:49]} Bc2 1-0

[Event "CZE-ch Open 2019"]
[Site "Ostrava"]
[Date "2019.05.04"]
[Round "8.25"]
[White "Bartos, Jan"]
[Black "Otruba, Marek"]
[Result "1/2-1/2"]
[ECO "A13"]
[WhiteElo "2187"]
[BlackElo "2101"]
[Annotator "NA"]
[PlyCount "61"]
[EventDate "2019.04.27"]
[EventType "swiss"]
[EventCountry "CZE"]
[SourceTitle "playchess.com"]
[Source "ChessBase"]
[SourceQuality "1"]
[TimeControl "40/5400+30:1800+30"]

1. Nf3 {[%emt 0:00:00]} d5 {[%emt 0:00:00]} 2. c4 {[%emt 0:00:17]} e6 {[%emt 0:00:00]} 3. g3 {[%emt 0:00:14]} Nf6 {[%emt 0:00:00]} 4. b3 {[%emt 0:00:07]} c5 {[%emt 0:00:32]} 5. cxd5 {[%emt 0:00:40]} Nxd5 {[%emt 0:01:36]} 6. Bb2 {[%emt 0:00:13]} b6 {[%emt 0:02:48]} 7. Bg2 {[%emt 0:00:45]} Bb7 {[%emt 0:00:15]} 8. O-O {[%emt 0:00:29]} Nd7 {[%emt 0:01:56]} 9. d4 {[%emt 0:19:00]} N5f6 {[%emt 0:09:44]} 10. Nc3 {[%emt 0:02:08]} cxd4 {[%emt 0:03:27]} 11. Qxd4 {[%emt 0:03:25]} Bc5 {[%emt 0:01:50]} 12. Qf4 {[%emt 0:02:49]} O-O {[%emt 0:03:17]} 13. Rfd1 {[%emt 0:01:52]} Qe7 {[%emt 0:02:02]} 14. Na4 {[%emt 0:24:59]} Nd5 {[%emt 0:08:55]} 15. Qg5 {[%emt 0:04:42]} Qxg5 {[%emt 0:08:42]} 16. Nxg5 {[%emt 0:00:02]} Be7 {[%emt 0:00:11]} 17. Ne4 {[%emt 0:00:22]} Rac8 {[%emt 0:01:24]} 18. Rac1 {[%emt 0:05:36]} Rxc1 {[%emt 0:06:14]} 19. Rxc1 {[%emt 0:00:11]} Rc8 {[%emt 0:00:03]} 20. Rxc8+ {[%emt 0:00:40]} Bxc8 {[%emt 0:00:06]} 21. Nac3 {[%emt 0:00:30]} Nc7 {[%emt 0:09:30]} 22. Kf1 {[%emt 0:03:46]} Kf8 {[%emt 0:01:20]} 23. Ke1 {[%emt 0:00:16]} Bb7 {[%emt 0:01:54]} 24. Kf1 {[%emt 0:02:27]} b5 {[%emt 0:02:33]} 25. Nd2 {[%emt 0:01:43]} Bxg2+ {[%emt 0:00:14]} 26. Kxg2 {[%emt 0:00:02]} Nb6 {[%emt 0:04:06]} 27. a4 {[%emt 0:05:01]} a6 {[%emt 0:04:07]} 28. axb5 {[%emt 0:00:31]} Nxb5 {[%emt 0:00:50]} 29. Nxb5 {[%emt 0:00:23]} axb5 {[%emt 0:00:04]} 30. e4 {[%emt 0:02:18]} Nd7 {[%emt 0:00:39]} 31. Kf3 {[%emt 0:00:52]} 1/2-1/2

[Event "CZE-ch Open 2019"]
[Site "Ostrava"]
[Date "2019.05.04"]
[Round "8.26"]
[White "Kana, Pavel"]
[Black "Bulockin, Martin"]
[Result "0-1"]
[ECO "B53"]
[WhiteElo "2013"]
[BlackElo "2219"]
[Annotator "NA"]
[PlyCount "88"]
[EventDate "2019.04.27"]
[EventType "swiss"]
[EventCountry "CZE"]
[SourceTitle "playchess.com"]
[Source "ChessBase"]
[SourceQuality "1"]
[TimeControl "40/5400+30:1800+30"]

1. e4 {[%emt 0:00:00]} c5 {[%emt 0:00:00]} 2. Nf3 {[%emt 0:00:05]} d6 {[%emt 0:00:00]} 3. d4 {[%emt 0:00:13]} cxd4 {[%emt 0:00:06]} 4. Qxd4 {[%emt 0:00:11]} a6 {[%emt 0:01:12]} 5. c4 {[%emt 0:01:14]} Nc6 {[%emt 0:00:09]} 6. Qe3 {[%emt 0:01:58]} Nf6 {[%emt 0:01:00]} 7. h3 {[%emt 0:00:14]} g6 {[%emt 0:01:09]} 8. Nc3 {[%emt 0:00:37]} Bg7 9. Be2 {[%emt 0:03:29]} O-O {[%emt 0:03:51]} 10. O-O {[%emt 0:00:12]} Bd7 {[%emt 0:05:49]} 11. Rb1 {[%emt 0:05:06]} a5 {[%emt 0:06:54]} 12. b3 {[%emt 0:02:34]} Ne8 {[%emt 0:05:41]} 13. Nd5 {[%emt 0:12:17]} Nc7 {[%emt 0:06:57]} 14. Bb2 {[%emt 0:07:01]} Bxb2 {[%emt 0:06:39]} 15. Rxb2 {[%emt 0:01:51]} f6 {[%emt 0:04:36]} 16. Nd4 {[%emt 0:07:47]} Nxd4 {[%emt 0:07:48]} 17. Qxd4 {[%emt 0:00:08]} e5 {[%emt 0:01:01]} 18. Qe3 {[%emt 0:12:31]} Nxd5 {[%emt 0:03:00]} 19. cxd5 {[%emt 0:01:28]} Rc8 {[%emt 0:02:45]} 20. Rc1 {[%emt 0:02:21]} Rxc1+ {[%emt 0:04:01]} 21. Qxc1 {[%emt 0:00:03]} Qb8 {[%emt 0:02:26]} 22. Rc2 {[%emt 0:01:59]} Rc8 {[%emt 0:03:28]} 23. Rxc8+ {[%emt 0:02:43]} Qxc8 {[%emt 0:00:26]} 24. Qxc8+ {[%emt 0:00:36]} Bxc8 {[%emt 0:00:01]} 25. h4 {[%emt 0:06:18]} f5 {[%emt 0:02:39]} 26. f3 {[%emt 0:06:47]} f4 {[%emt 0:05:59]} 27. g4 {[%emt 0:02:13]} fxg3 {[%emt 0:02:35]} 28. Kg2 {[%emt 0:00:11]} Bd7 {[%emt 0:01:12]} 29. a3 {[%emt 0:01:26]} Kf7 {[%emt 0:00:41]} 30. Kxg3 {[%emt 0:02:45]} Kf6 {[%emt 0:04:15]} 31. Bd3 {[%emt 0:02:42]} g5 {[%emt 0:00:48]} 32. Be2 {[%emt 0:01:01]} Kg6 {[%emt 0:00:16]} 33. Bf1 {[%emt 0:01:25]} Kh5 {[%emt 0:00:44]} 34. hxg5 {[%emt 0:03:07]} Kxg5 {[%emt 0:00:01]} 35. b4 {[%emt 0:01:46]} axb4 {[%emt 0:00:30]} 36. axb4 {[%emt 0:00:02]} h5 {[%emt 0:00:14]} 37. Be2 {[%emt 0:01:58]} h4+ {[%emt 0:00:08]} 38. Kf2 {[%emt 0:02:01]} Kf4 {[%emt 0:00:09]} 39. Bc4 {[%emt 0:03:41]} Ba4 {[%emt 0:03:12]} 40. Be2 {[%emt 0:03:44]} h3 {[%emt 0:00:23]} 41. Bf1 {[%emt 0:32:01]} h2 {[%emt 0:34:27]} 42. Bg2 {[%emt 0:00:15]} Bd7 {[%emt 0:00:14]} 43. Bh1 {[%emt 0:00:00]} Bh3 {[%emt 0:00:00]} 44. Ke2 {[%emt 0:00:00]} Kg3 {[%emt 0:00:00]} 0-1

[Event "CZE-ch Open 2019"]
[Site "Ostrava"]
[Date "2019.05.04"]
[Round "8.28"]
[White "Koubova, Anna Marie"]
[Black "Vanek, Tomas"]
[Result "1-0"]
[ECO "A85"]
[WhiteElo "1975"]
[BlackElo "2095"]
[Annotator "NA RC"]
[PlyCount "95"]
[EventDate "2019.04.27"]
[EventType "swiss"]
[EventCountry "CZE"]
[SourceTitle "playchess.com"]
[Source "ChessBase"]
[SourceQuality "1"]
[TimeControl "40/5400+30:1800+30"]

1. d4 {[%emt 0:00:00]} f5 {[%emt 0:00:00]} 2. c4 {[%emt 0:00:00]} Nf6 {[%emt 0:00:00]} 3. Nc3 {[%emt 0:00:00]} b6 {[%emt 0:00:11]} 4. Nf3 {[%emt 0:01:54]} Bb7 {[%emt 0:01:22]} 5. e3 {[%emt 0:01:45]} e6 {[%emt 0:00:40]} 6. Bd3 {[%emt 0:01:18]} Bb4 {[%emt 0:03:25]} 7. O-O {[%emt 0:01:02]} O-O {[%emt 0:00:43]} 8. Nd2 {[%emt 0:02:12]} Qe8 {[%emt 0:18:23]} 9. f3 {[%emt 0:13:58]} Na6 {[%emt 0:05:40]} 10. Qe2 {[%emt 0:05:59]} Bxc3 {[%emt 0:10:31]} 11. bxc3 {[%emt 0:00:09]} c5 {[%emt 0:01:33]} 12. Ba3 {[%emt 0:03:22]} Qg6 {[%emt 0:09:46]} 13. Qf2 {[%emt 0:11:37]} Qh6 {[%emt 0:07:32]} 14. Rae1 {[%emt 0:03:21]} Ne4 {[%emt 0:08:23]} 15. Bxe4 {[%emt 0:09:01]} fxe4 {[%emt 0:00:18]} 16. Qg3 {[%emt 0:00:22]} exf3 {[%emt 0:07:26]} 17. Nxf3 {[%emt 0:00:13]} Be4 {[%emt 0:03:33]} 18. Ne5 {[%emt 0:01:52]} d6 {[%emt 0:04:14]} 19. Nd7 {[%emt 0:14:57]} Rf5 {[%emt 0:00:20]} 20. Qxd6 {[%emt 0:00:18]} Qg6 {[%emt 0:00:28]} 21. g3 {[%emt 0:03:45]} Rd8 {[%emt 0:03:50]} 22. Rxf5 {[%emt 0:06:15]} Bxf5 {[%emt 0:02:12]} 23. Qe7 {[%emt 0:00:20]} Re8 {[%emt 0:00:05]} 24. Qh4 {[%emt 0:00:16]} Bb1 {[%emt 0:01:04]} 25. e4 {[%emt 0:09:43]} Bc2 {[%emt 0:03:35]} 26. Ne5 {[%emt 0:00:55]} Qf6 {[%emt 0:00:30]} 27. Qxf6 {[%emt 0:00:12]} gxf6 {[%emt 0:00:05]} 28. Ng4 {[%emt 0:01:24]} Kg7 {[%emt 0:00:22]} 29. e5 {[%emt 0:02:30]} fxe5 {[%emt 0:01:00]} 30. Nxe5 {[%emt 0:00:46]} h5 {[%emt 0:00:36]} 31. Rf1 {[%emt 0:01:28]} Re7 {[%emt 0:03:40]} 32. Bc1 {[%emt 0:01:07]} cxd4 {[%emt 0:00:44]} 33. cxd4 {[%emt 0:00:41]} Nb4 {[%emt 0:01:59]} 34. Ba3 {[%emt 0:02:25]} a5 {[%emt 0:00:23]} 35. Bxb4 {[%emt 0:00:04]} axb4 {[%emt 0:00:05]} 36. Rf2 {[%emt 0:00:17]} Bf5 {[%emt 0:01:54]} 37. Rb2 {[%emt 0:02:10]} Ra7 {[%emt 0:00:22]} 38. Rxb4 {[%emt 0:00:38]} Rxa2 {[%emt 0:00:07]} 39. Rxb6 {[%emt 0:00:15]} Bh3 {[%emt 0:01:17]} 40. Rb7+ {[%emt 0:00:45]} Kh6 {[%emt 0:00:04]} 41. Rb1 {[%emt 0:05:05]} Rg2+ {[%emt 0:01:11]} 42. Kh1 {[%emt 0:00:18]} Rd2 {[%emt 0:00:41]} 43. Rc1 {[%emt 0:00:58]} h4 {[%emt 0:06:37]} 44. c5 {[%emt 0:11:53]} Bg2+ {[%emt 0:02:06]} 45. Kg1 {[%emt 0:00:05]} Bd5 {[%emt 0:03:06]} 46. c6 {[%emt 0:02:36]} Rg2+ {[%emt 0:00:30]} 47. Kf1 {[%emt 0:00:08]} Rxh2 {[%emt 0:00:26]} 48. Ng4+ {[%emt 0:00:23]} 1-0

[Event "CZE-ch Open 2019"]
[Site "Ostrava"]
[Date "2019.05.04"]
[Round "8.29"]
[White "Kolar, Stanislav"]
[Black "Malinovsky, Petr"]
[Result "0-1"]
[ECO "D00"]
[WhiteElo "2113"]
[BlackElo "2012"]
[Annotator "NA"]
[PlyCount "78"]
[EventDate "2019.04.27"]
[EventType "swiss"]
[EventCountry "CZE"]
[SourceTitle "playchess.com"]
[Source "ChessBase"]
[SourceQuality "1"]
[TimeControl "40/5400+30:1800+30"]

1. d4 {[%emt 0:00:00]} d5 {[%emt 0:00:00]} 2. Bf4 {[%emt 0:00:00]} e6 {[%emt 0:00:23]} 3. e3 {[%emt 0:00:04]} Bd6 {[%emt 0:00:10]} 4. Nf3 {[%emt 0:00:20]} Bxf4 {[%emt 0:03:21]} 5. exf4 {[%emt 0:00:02]} Qd6 {[%emt 0:01:12]} 6. Qc1 {[%emt 0:01:10]} c5 {[%emt 0:02:25]} 7. c3 {[%emt 0:02:36]} b6 {[%emt 0:02:06]} 8. Na3 {[%emt 0:03:54]} Nf6 {[%emt 0:02:37]} 9. Ne5 {[%emt 0:01:04]} O-O {[%emt 0:02:16]} 10. Nb5 {[%emt 0:03:00]} Qe7 {[%emt 0:01:54]} 11. a4 {[%emt 0:00:41]} a6 {[%emt 0:00:47]} 12. Na3 {[%emt 0:00:15]} cxd4 {[%emt 0:00:49]} 13. Bd3 {[%emt 0:03:49]} dxc3 {[%emt 0:03:16]} 14. bxc3 {[%emt 0:00:12]} Bb7 {[%emt 0:03:23]} 15. O-O {[%emt 0:00:35]} Nbd7 {[%emt 0:03:50]} 16. Nxd7 {[%emt 0:02:32]} Nxd7 {[%emt 0:03:38]} 17. Re1 {[%emt 0:01:51]} g6 {[%emt 0:06:59]} 18. Re3 {[%emt 0:03:53]} Qf6 {[%emt 0:01:05]} 19. Rg3 {[%emt 0:02:31]} Rfc8 {[%emt 0:02:37]} 20. Nb1 {[%emt 0:06:37]} d4 {[%emt 0:06:11]} 21. Ra3 {[%emt 0:03:26]} Rc7 {[%emt 0:05:50]} 22. c4 {[%emt 0:13:48]} Rac8 {[%emt 0:01:26]} 23. h3 {[%emt 0:01:39]} b5 {[%emt 0:01:24]} 24. axb5 {[%emt 0:00:33]} axb5 {[%emt 0:00:07]} 25. Qb2 {[%emt 0:02:18]} bxc4 {[%emt 0:06:40]} 26. Bxc4 {[%emt 0:00:18]} Qxf4 {[%emt 0:18:58]} 27. Ra7 {[%emt 0:07:09]} Rxc4 {[%emt 0:03:52]} 28. Qxb7 {[%emt 0:01:04]} R4c7 {[%emt 0:01:19]} 29. Qa6 {[%emt 0:01:41]} Qc1+ {[%emt 0:01:14]} 30. Kh2 {[%emt 0:00:13]} Qxb1 {[%emt 0:00:25]} 31. Rxc7 {[%emt 0:01:20]} Rxc7 {[%emt 0:00:03]} 32. Qd6 {[%emt 0:00:18]} Qb6 {[%emt 0:00:34]} 33. Qe7 {[%emt 0:00:18]} Qb8 {[%emt 0:02:33]} 34. h4 {[%emt 0:01:17]} Qf8 {[%emt 0:02:07]} 35. Qg5 {[%emt 0:00:36]} Rc5 {[%emt 0:00:49]} 36. Qf4 {[%emt 0:01:38]} e5 {[%emt 0:00:43]} 37. Qd2 {[%emt 0:01:27]} Qe7 {[%emt 0:02:57]} 38. Rg5 {[%emt 0:05:40]} h6 {[%emt 0:02:23]} 39. Rg4 {[%emt 0:00:14]} Nf6 {[%emt 0:00:53]} 0-1

[Event "CZE-ch Open 2019"]
[Site "Ostrava"]
[Date "2019.05.04"]
[Round "8.30"]
[White "Valencik, Jozef"]
[Black "Vorisek, Jakub"]
[Result "0-1"]
[ECO "A40"]
[WhiteElo "2056"]
[BlackElo "2027"]
[Annotator "NA"]
[PlyCount "70"]
[EventDate "2019.04.27"]
[EventType "swiss"]
[EventCountry "CZE"]
[SourceTitle "playchess.com"]
[Source "ChessBase"]
[SourceQuality "1"]
[TimeControl "40/5400+30:1800+30"]

1. d4 e6 2. Bf4 d5 3. e3 Bd6 4. Bxd6 Qxd6 5. Qg4 g6 6. Nd2 Bd7 7. c3 Nc6 8. f4 O-O-O 9. Be2 Nh6 10. Qh4 Nf5 11. Qf2 h5 12. e4 Nh6 13. e5 Qe7 14. Ngf3 f6 15. Bd3 fxe5 16. Nxe5 Nxe5 17. dxe5 Kb8 18. Bxg6 Ng4 19. Qe2 Rdg8 20. Bd3 Qc5 21. Nf3 Ne3 22. Ng5 d4 23. Ne4 Qe7 24. Ng5 Rxg5 25. fxg5 Qxg5 26. cxd4 Nxg2+ 27. Kd1 Rf8 28. Kc2 Ne3+ 29. Kb3 a5 30. a4 Bc6 31. Rhg1 Bd5+ 32. Bc4 Qe7 33. Bxd5 Qb4+ 34. Ka2 Nxd5 35. Qb5 Nc3+ 0-1

[Event "CZE-ch Open 2019"]
[Site "Ostrava"]
[Date "2019.05.04"]
[Round "8.31"]
[White "Jurek, Josef"]
[Black "Pavlicek, Lukas"]
[Result "1-0"]
[ECO "A05"]
[WhiteElo "2272"]
[BlackElo "1954"]
[Annotator "NA"]
[PlyCount "71"]
[EventDate "2019.04.27"]
[EventType "swiss"]
[EventCountry "CZE"]
[SourceTitle "playchess.com"]
[Source "ChessBase"]
[SourceQuality "1"]
[TimeControl "40/5400+30:1800+30"]

1. Nf3 {[%emt 0:00:00]} Nf6 {[%emt 0:00:00]} 2. c4 {[%emt 0:00:00]} e6 {[%emt 0:00:00]} 3. g3 {[%emt 0:00:14]} d5 {[%emt 0:00:00]} 4. d4 {[%emt 0:00:13]} Bb4+ {[%emt 0:00:17]} 5. Bd2 {[%emt 0:00:14]} Be7 {[%emt 0:00:06]} 6. Bg2 {[%emt 0:00:34]} O-O {[%emt 0:00:24]} 7. O-O {[%emt 0:00:42]} c6 {[%emt 0:00:21]} 8. Qc2 {[%emt 0:01:06]} b6 {[%emt 0:01:26]} 9. b3 {[%emt 0:04:33]} Ba6 {[%emt 0:02:59]} 10. Bf4 {[%emt 0:02:29]} Nbd7 {[%emt 0:03:38]} 11. Rd1 {[%emt 0:01:19]} Rc8 {[%emt 0:02:56]} 12. Nc3 {[%emt 0:02:07]} Nh5 {[%emt 0:06:08]} 13. e4 {[%emt 0:07:26]} Nxf4 {[%emt 0:13:42]} 14. gxf4 dxc4 15. f5 {[%emt 0:17:41]} exf5 {[%emt 0:26:16]} 16. Bh3 {[%emt 0:01:02]} fxe4 {[%emt 0:03:33]} 17. Ne5 {[%emt 0:01:26]} Rc7 {[%emt 0:03:47]} 18. Bxd7 {[%emt 0:03:04]} Rxd7 {[%emt 0:02:43]} 19. Nxd7 {[%emt 0:00:34]} Qxd7 {[%emt 0:00:04]} 20. Qxe4 {[%emt 0:05:56]} Bb4 {[%emt 0:03:46]} 21. Rac1 {[%emt 0:01:20]} Re8 {[%emt 0:01:50]} 22. Qf3 {[%emt 0:02:14]} Re6 {[%emt 0:05:20]} 23. d5 {[%emt 0:04:18]} Rg6+ {[%emt 0:00:35]} 24. Kh1 {[%emt 0:00:09]} Bb7 {[%emt 0:02:44]} 25. bxc4 {[%emt 0:01:29]} b5 {[%emt 0:02:43]} 26. Ne4 {[%emt 0:07:57]} cxd5 {[%emt 0:02:12]} 27. cxd5 {[%emt 0:01:02]} Bd6 {[%emt 0:06:29]} 28. Rd3 {[%emt 0:07:52]} Rh6 {[%emt 0:01:37]} 29. Ng3 {[%emt 0:00:29]} Rf6 {[%emt 0:02:47]} 30. Qg2 {[%emt 0:00:38]} Bf4 {[%emt 0:00:42]} 31. Rcd1 {[%emt 0:01:25]} a5 {[%emt 0:00:48]} 32. Qe4 {[%emt 0:02:25]} Bd6 {[%emt 0:01:19]} 33. Rf3 {[%emt 0:02:09]} Rxf3 {[%emt 0:01:25]} 34. Qxf3 {[%emt 0:00:10]} b4 {[%emt 0:00:56]} 35. Nf5 {[%emt 0:01:05]} a4 {[%emt 0:01:03]} 36. Qg4 {[%emt 0:00:38]} 1-0

[Event "CZE-ch Open 2019"]
[Site "Ostrava"]
[Date "2019.05.04"]
[Round "8.32"]
[White "Bures, Martin"]
[Black "Horak, Jan"]
[Result "0-1"]
[ECO "A65"]
[WhiteElo "2143"]
[BlackElo "2048"]
[Annotator "NA"]
[PlyCount "62"]
[EventDate "2019.04.27"]
[EventType "swiss"]
[EventCountry "CZE"]
[SourceTitle "playchess.com"]
[Source "ChessBase"]
[SourceQuality "1"]
[TimeControl "40/5400+30:1800+30"]

1. d4 {[%emt 0:00:27]} Nf6 {[%emt 0:00:00]} 2. c4 {[%emt 0:00:33]} c5 {[%emt 0:00:00]} 3. d5 {[%emt 0:00:10]} e6 {[%emt 0:00:20]} 4. Nc3 {[%emt 0:00:10]} exd5 {[%emt 0:00:25]} 5. cxd5 {[%emt 0:00:02]} d6 {[%emt 0:00:14]} 6. e4 {[%emt 0:01:27]} g6 {[%emt 0:00:24]} 7. h3 {[%emt 0:01:10]} Bg7 {[%emt 0:00:29]} 8. Nf3 {[%emt 0:00:17]} O-O {[%emt 0:00:27]} 9. Bd3 {[%emt 0:00:02]} a6 {[%emt 0:00:18]} 10. a4 {[%emt 0:02:16]} Nbd7 {[%emt 0:01:23]} 11. Bf4 {[%emt 0:00:51]} Qc7 {[%emt 0:01:51]} 12. O-O {[%emt 0:11:47]} Re8 {[%emt 0:02:17]} 13. Re1 {[%emt 0:00:22]} Rb8 {[%emt 0:01:50]} 14. Nd2 {[%emt 0:23:26]} Ne5 {[%emt 0:12:06]} 15. Be2 {[%emt 0:00:23]} h6 {[%emt 0:14:22]} 16. Bh2 {[%emt 0:05:19]} g5 {[%emt 0:02:00]} 17. f4 {[%emt 0:03:26]} gxf4 {[%emt 0:00:21]} 18. Bxf4 {[%emt 0:00:02]} Ng6 {[%emt 0:00:50]} 19. Bg3 {[%emt 0:00:39]} Nd7 {[%emt 0:00:49]} 20. Nc4 {[%emt 0:11:40]} Nde5 {[%emt 0:01:29]} 21. Ne3 {[%emt 0:01:34]} Qd8 {[%emt 0:14:37]} 22. Nf5 {[%emt 0:10:17]} Qg5 {[%emt 0:03:26]} 23. Nxg7 {[%emt 0:03:01]} Qxg3 {[%emt 0:01:46]} 24. Nxe8 {[%emt 0:00:42]} Nh4 {[%emt 0:00:12]} 25. Nf6+ {[%emt 0:00:49]} Kh8 {[%emt 0:00:10]} 26. Bf3 {[%emt 0:06:50]} Nexf3+ {[%emt 0:00:14]} 27. Qxf3 {[%emt 0:00:49]} Nxf3+ {[%emt 0:00:11]} 28. Kf1 {[%emt 0:00:13]} Nxe1 {[%emt 0:01:22]} 29. Rxe1 {[%emt 0:00:42]} Qf4+ {[%emt 0:00:08]} 30. Ke2 {[%emt 0:00:31]} Qxf6 {[%emt 0:00:10]} 31. Rf1 {[%emt 0:00:12]} Qg6 {[%emt 0:00:27]} 0-1